[Event "FIDE World Junior U20-ch Girls 2025"]
[Site "Petrovac"]
[Date "2025.02.28"]
[Round "4.46"]
[White "Djukic, Katarina"]
[Black "Sovetbekova, Nurai"]
[Result "1/2-1/2"]
[Annotator "NA"]
[ECO "B90"]
[WhiteElo "1786"]
[BlackElo "1940"]
[PlyCount "58"]
[EventDate "2025.02.23"]
[EventType "swiss"]
[EventCountry "MNE"]
[SourceTitle "playchess.com"]
[Source "ChessBase"]
[SourceQuality "1"]
[TimeControl "40/5400+30:1800+30"]

1. e4 {[%emt 0:00:02]} c5 {[%emt 0:00:06]} 2. Nf3 {[%emt 0:00:07]} d6 {[%emt 0:00:04]} 3. d4 {[%emt 0:00:07]} cxd4 {[%emt 0:00:04]} 4. Nxd4 {[%emt 0:00:04]} Nf6 {[%emt 0:00:07]} 5. Nc3 {[%emt 0:00:06]} a6 {[%emt 0:00:04]} 6. h3 {[%emt 0:00:04]} g6 {[%emt 0:01:59]} 7. Be3 {[%emt 0:00:16]} Bg7 {[%emt 0:00:07]} 8. Qd2 {[%emt 0:00:07]} Nbd7 {[%emt 0:00:41]} 9. f3 {[%emt 0:03:38]} b5 {[%emt 0:08:51]} 10. a4 {[%emt 0:01:32]} bxa4 {[%emt 0:07:55]} 11. Rxa4 {[%emt 0:05:20]} Bb7 {[%emt 0:05:17]} 12. Rb4 {[%emt 0:06:20]} Rb8 {[%emt 0:11:11]} 13. Be2 {[%emt 0:06:06]} h5 {[%emt 0:14:36]} 14. Nb3 {[%emt 0:09:55]} Qc7 {[%emt 0:11:28]} 15. O-O {[%emt 0:10:52]} O-O {[%emt 0:03:40]} 16. Ra1 {[%emt 0:03:06]} Bc8 {[%emt 0:05:35]} 17. Rxb8 {[%emt 0:24:12]} Nxb8 {[%emt 0:00:26]} 18. Bh6 {[%emt 0:06:15]} Be6 {[%emt 0:08:19]} 19. Bxg7 {[%emt 0:01:45]} Kxg7 {[%emt 0:00:03]} 20. Qe3 {[%emt 0:01:20]} Bc4 {[%emt 0:06:08]} 21. Bxc4 {[%emt 0:00:39]} Qxc4 {[%emt 0:00:02]} 22. Na5 {[%emt 0:00:58]} Qb4 {[%emt 0:01:26]} 23. b3 {[%emt 0:01:52]} Rc8 {[%emt 0:01:29]} 24. Nc4 {[%emt 0:00:29]} Nbd7 {[%emt 0:04:41]} 25. Rxa6 {[%emt 0:10:18]} Ne5 {[%emt 0:00:22]} 26. Ra4 {[%emt 0:00:12]} Nxc4 {[%emt 0:00:47]} 27. bxc4 {[%emt 0:00:07]} Qb2 {[%emt 0:00:58]} 28. Ra2 {[%emt 0:00:16]} Qb4 {[%emt 0:01:32]} 29. Ra4 {[%emt 0:00:39]} Qb2 {[%emt 0:01:25]} 1/2-1/2

[Event "FIDE World Junior U20-ch Girls 2025"]
[Site "Petrovac"]
[Date "2025.03.01"]
[Round "5.1"]
[White "Nurman, Alua"]
[Black "Omonova, Umida"]
[Result "0-1"]
[Annotator "ChessBase"]
[ECO "B40"]
[WhiteElo "2336"]
[BlackElo "2228"]
[PlyCount "94"]
[EventDate "2025.02.23"]
[EventType "swiss"]
[EventCountry "MNE"]
[SourceTitle "playchess.com"]
[Source "ChessBase"]
[SourceQuality "1"]
[TimeControl "40/5400+30:1800+30"]

1. e4 {[%emt 0:00:04]} c5 {[%emt 0:00:47]} 2. Nf3 {[%emt 0:00:50]} e6 {[%emt 0:01:12]} 3. d4 {[%emt 0:00:08]} cxd4 {[%emt 0:00:07]} 4. Nxd4 {[%emt 0:00:06]} Nf6 {[%emt 0:00:09]} 5. Nc3 {[%emt 0:00:09]} Nc6 {[%emt 0:00:07]} 6. Bf4 {[%emt 0:00:17]} Bb4 {[%emt 0:04:04]} 7. Ndb5 {[%emt 0:00:25]} Nxe4 {[%emt 0:05:06]} 8. Qf3 {[%emt 0:00:23]} d5 {[%emt 0:00:08]} 9. Nc7+ {[%emt 0:01:07]} Kf8 {[%emt 0:00:08]} 10. O-O-O {[%emt 0:00:30]} Bxc3 {[%emt 0:01:15]} 11. bxc3 {[%emt 0:00:06]} Qe7 {[%emt 0:00:40]} 12. c4 {[%emt 0:00:20]} Nb4 {[%emt 0:03:23]} 13. a3 {[%emt 0:33:30]} Na2+ {[%emt 0:05:32]} 14. Kb2 {[%emt 0:00:06]} Nac3 {[%emt 0:00:17]} 15. Rd3 {[%emt 0:14:17]} Na4+ {[%emt 0:02:11]} 16. Ka1 {[%emt 0:13:33]} Nac5 {[%emt 0:12:32]} 17. Re3 {[%emt 0:07:05]} Qf6+ {[%emt 0:07:51]} 18. Ka2 {[%emt 0:04:19]} Na4 {[%emt 0:12:50]} 19. c3 {[%emt 0:05:42]} Bd7 {[%emt 0:12:09]} 20. Nxa8 {[%emt 0:03:00]} Naxc3+ {[%emt 0:03:01]} 21. Rxc3 {[%emt 0:00:11]} Nxc3+ {[%emt 0:00:01]} 22. Kb3 {[%emt 0:00:12]} Ne4 {[%emt 0:00:54]} 23. Ka2 {[%emt 0:04:51]} Nc3+ {[%emt 0:00:18]} 24. Kb3 {[%emt 0:00:05]} Ne4 {[%emt 0:00:16]} 25. Ka2 {[%emt 0:00:33]} Ba4 {[%emt 0:05:11]} 26. Bg3 {[%emt 0:03:58]} Qd4 {[%emt 0:02:16]} 27. Qd3 {[%emt 0:00:26]} Qxd3 {[%emt 0:01:41]} 28. Bxd3 {[%emt 0:00:02]} Nxg3 {[%emt 0:00:07]} 29. hxg3 {[%emt 0:00:08]} Ke7 {[%emt 0:01:07]} 30. cxd5 {[%emt 0:02:36]} Rxa8 {[%emt 0:00:15]} 31. dxe6 {[%emt 0:00:04]} Rd8 {[%emt 0:01:16]} 32. Bc4 {[%emt 0:03:44]} Rd2+ {[%emt 0:00:05]} 33. Kb1 {[%emt 0:00:02]} fxe6 {[%emt 0:01:53]} 34. Rxh7 {[%emt 0:00:07]} Kf7 {[%emt 0:01:02]} 35. Rh4 {[%emt 0:04:00]} Bc2+ {[%emt 0:00:04]} 36. Kc1 {[%emt 0:00:01]} Rxf2 {[%emt 0:00:05]} 37. Rd4 {[%emt 0:00:17]} Ke7 {[%emt 0:01:09]} 38. Bb5 {[%emt 0:00:10]} a6 {[%emt 0:00:10]} 39. Rd7+ {[%emt 0:01:34]} Kf6 {[%emt 0:00:06]} 40. Bc4 {[%emt 0:00:55]} Be4 {[%emt 0:00:13]} 41. Rd2 {[%emt 0:06:48]} Rxd2 {[%emt 0:00:08]} 42. Kxd2 {[%emt 0:00:02]} Bxg2 {[%emt 0:00:15]} 43. Ke3 {[%emt 0:02:41]} Ke5 {[%emt 0:00:05]} 44. Bb3 {[%emt 0:01:17]} b5 {[%emt 0:00:19]} 45. Bc2 {[%emt 0:00:21]} a5 {[%emt 0:00:14]} 46. Bd3 {[%emt 0:00:32]} b4 {[%emt 0:00:05]} 47. axb4 {[%emt 0:00:35]} axb4 {[%emt 0:00:01]} 0-1

[Event "FIDE World Junior U20-ch Girls 2025"]
[Site "Petrovac"]
[Date "2025.03.01"]
[Round "5.2"]
[White "Allahverdiyeva, Ayan"]
[Black "Kairbekova, Amina"]
[Result "1-0"]
[Annotator "ChessBase"]
[ECO "D35"]
[WhiteElo "2284"]
[BlackElo "2336"]
[PlyCount "89"]
[EventDate "2025.02.23"]
[EventType "swiss"]
[EventCountry "MNE"]
[SourceTitle "playchess.com"]
[Source "ChessBase"]
[SourceQuality "1"]
[TimeControl "40/5400+30:1800+30"]

1. d4 {[%emt 0:00:43]} Nf6 {[%emt 0:00:05]} 2. c4 {[%emt 0:00:03]} e6 {[%emt 0:00:06]} 3. Nc3 {[%emt 0:00:06]} d5 {[%emt 0:00:09]} 4. cxd5 {[%emt 0:00:33]} exd5 {[%emt 0:00:06]} 5. Bf4 {[%emt 0:00:38]} Bd6 {[%emt 0:01:32]} 6. Be5 {[%emt 0:01:25]} c6 {[%emt 0:03:32]} 7. h3 {[%emt 0:00:43]} O-O {[%emt 0:09:02]} 8. Nf3 {[%emt 0:04:19]} Ne4 {[%emt 0:06:44]} 9. e3 {[%emt 0:08:17]} Bb4 {[%emt 0:11:18]} 10. Qb3 {[%emt 0:00:55]} Qa5 {[%emt 0:00:12]} 11. Rc1 {[%emt 0:00:46]} Nd7 {[%emt 0:05:11]} 12. Bd3 {[%emt 0:09:57]} Re8 {[%emt 0:12:45]} 13. Bf4 {[%emt 0:10:37]} Ndf6 {[%emt 0:12:05]} 14. O-O {[%emt 0:01:01]} Bf5 {[%emt 0:07:27]} 15. Rfd1 {[%emt 0:05:06]} h6 {[%emt 0:08:39]} 16. a3 {[%emt 0:03:51]} Bxc3 {[%emt 0:01:08]} 17. bxc3 {[%emt 0:00:03]} Qb6 {[%emt 0:00:03]} 18. Qc2 {[%emt 0:00:30]} Qa5 {[%emt 0:01:40]} 19. a4 {[%emt 0:27:07]} Rad8 {[%emt 0:04:29]} 20. Ne5 {[%emt 0:03:33]} Be6 {[%emt 0:09:55]} 21. c4 {[%emt 0:00:16]} Nh5 {[%emt 0:04:12]} 22. Bh2 {[%emt 0:04:27]} f6 {[%emt 0:00:21]} 23. Nf3 {[%emt 0:00:29]} f5 {[%emt 0:00:32]} 24. cxd5 {[%emt 0:03:54]} Bxd5 {[%emt 0:00:24]} 25. Ne5 {[%emt 0:00:42]} Nhf6 {[%emt 0:00:35]} 26. Rb1 {[%emt 0:07:38]} Re7 {[%emt 0:00:10]} 27. f3 {[%emt 0:00:52]} Nd6 {[%emt 0:01:01]} 28. Re1 {[%emt 0:00:40]} Be6 {[%emt 0:00:32]} 29. Ng6 {[%emt 0:00:51]} Rf7 {[%emt 0:00:10]} 30. Nf4 {[%emt 0:02:17]} Bc8 {[%emt 0:00:30]} 31. e4 {[%emt 0:00:20]} fxe4 {[%emt 0:00:05]} 32. fxe4 {[%emt 0:00:03]} Nfe8 {[%emt 0:01:18]} 33. e5 {[%emt 0:00:57]} Nf5 {[%emt 0:00:30]} 34. e6 {[%emt 0:00:06]} Rf6 {[%emt 0:00:04]} 35. Re5 {[%emt 0:00:02]} Nxd4 {[%emt 0:00:56]} 36. Rxa5 {[%emt 0:01:12]} Nxc2 {[%emt 0:00:05]} 37. Bxc2 {[%emt 0:00:04]} Rd2 {[%emt 0:00:51]} 38. Bg6 {[%emt 0:00:49]} Nd6 {[%emt 0:00:35]} 39. e7 {[%emt 0:00:44]} a6 {[%emt 0:00:23]} 40. Re5 {[%emt 0:00:26]} Bd7 {[%emt 0:00:37]} 41. e8=Q+ {[%emt 0:30:39]} Bxe8 {[%emt 0:30:04]} 42. Bxe8 {[%emt 0:00:04]} g5 {[%emt 0:00:03]} 43. Ne2 {[%emt 0:01:11]} Nc4 {[%emt 0:00:04]} 44. Re4 {[%emt 0:00:20]} b5 {[%emt 0:00:00]} 45. Bh5 {[%emt 0:00:00]} 1-0

[Event "FIDE World Junior U20-ch Girls 2025"]
[Site "Petrovac"]
[Date "2025.03.01"]
[Round "5.3"]
[White "Hrebenshchykova, Yelyzaveta"]
[Black "Velpula Sarayu"]
[Result "1/2-1/2"]
[Annotator "ChessBase"]
[ECO "D37"]
[WhiteElo "2259"]
[BlackElo "2315"]
[PlyCount "35"]
[EventDate "2025.02.23"]
[EventType "swiss"]
[EventCountry "MNE"]
[SourceTitle "playchess.com"]
[Source "ChessBase"]
[SourceQuality "1"]
[TimeControl "40/5400+30:1800+30"]

1. d4 {[%emt 0:00:01]} Nf6 {[%emt 0:00:31]} 2. c4 {[%emt 0:00:09]} e6 {[%emt 0:00:29]} 3. Nf3 {[%emt 0:03:34]} d5 {[%emt 0:00:31]} 4. Nc3 {[%emt 0:01:59]} Nbd7 {[%emt 0:00:28]} 5. e3 {[%emt 0:09:33]} Bb4 {[%emt 0:02:43]} 6. Bd2 {[%emt 0:01:28]} O-O {[%emt 0:07:35]} 7. cxd5 {[%emt 0:07:48]} exd5 {[%emt 0:01:38]} 8. Bd3 {[%emt 0:01:02]} Re8 {[%emt 0:03:00]} 9. O-O {[%emt 0:00:27]} c6 {[%emt 0:01:03]} 10. Qc2 {[%emt 0:06:05]} Bd6 {[%emt 0:03:17]} 11. h3 {[%emt 0:12:26]} Qe7 {[%emt 0:04:08]} 12. Nh4 {[%emt 0:09:16]} g6 {[%emt 0:05:53]} 13. f4 {[%emt 0:02:05]} Ne4 {[%emt 0:05:59]} 14. Bxe4 {[%emt 0:00:11]} dxe4 {[%emt 0:00:19]} 15. Be1 {[%emt 0:00:30]} Nb6 {[%emt 0:14:14]} 16. g4 {[%emt 0:07:20]} c5 {[%emt 0:03:39]} 17. dxc5 {[%emt 0:04:48]} Bxc5 {[%emt 0:00:36]} 18. Ng2 {[%emt 0:00:03]} 1/2-1/2

[Event "FIDE World Junior U20-ch Girls 2025"]
[Site "Petrovac"]
[Date "2025.03.01"]
[Round "5.4"]
[White "Mgeladze, Kesaria"]
[Black "Zhurova, Anna"]
[Result "1-0"]
[Annotator "ChessBase"]
[ECO "C19"]
[WhiteElo "2219"]
[BlackElo "2307"]
[PlyCount "79"]
[EventDate "2025.02.23"]
[EventType "swiss"]
[EventCountry "MNE"]
[SourceTitle "playchess.com"]
[Source "ChessBase"]
[SourceQuality "1"]
[TimeControl "40/5400+30:1800+30"]

1. e4 {[%emt 0:00:40]} e6 {[%emt 0:00:07]} 2. d4 {[%emt 0:00:06]} d5 {[%emt 0:00:05]} 3. Nc3 {[%emt 0:00:03]} Bb4 {[%emt 0:00:09]} 4. e5 {[%emt 0:00:08]} Ne7 {[%emt 0:01:36]} 5. a3 {[%emt 0:00:16]} Bxc3+ {[%emt 0:00:17]} 6. bxc3 {[%emt 0:00:05]} c5 {[%emt 0:00:25]} 7. Qg4 {[%emt 0:00:16]} O-O {[%emt 0:03:02]} 8. Bd3 {[%emt 0:00:45]} f5 {[%emt 0:00:53]} 9. exf6 {[%emt 0:00:21]} Rxf6 {[%emt 0:00:04]} 10. Bg5 {[%emt 0:00:16]} Rf7 {[%emt 0:00:39]} 11. Qh5 {[%emt 0:00:37]} g6 {[%emt 0:00:30]} 12. Qd1 {[%emt 0:03:26]} Nbc6 {[%emt 0:00:45]} 13. Nf3 {[%emt 0:01:24]} Qa5 {[%emt 0:01:10]} 14. Bd2 {[%emt 0:06:46]} c4 {[%emt 0:03:32]} 15. Be2 {[%emt 0:03:23]} Bd7 {[%emt 0:00:58]} 16. O-O {[%emt 0:02:33]} Re8 {[%emt 0:00:33]} 17. h4 {[%emt 0:06:31]} Nf5 {[%emt 0:03:02]} 18. h5 {[%emt 0:04:50]} gxh5 {[%emt 0:13:23]} 19. Ng5 {[%emt 0:04:31]} Rg7 {[%emt 0:00:46]} 20. Bxh5 {[%emt 0:00:35]} Rf8 {[%emt 0:01:27]} 21. Re1 {[%emt 0:13:20]} Rf6 {[%emt 0:01:34]} 22. Nf3 {[%emt 0:00:31]} Nd6 {[%emt 0:03:26]} 23. Ne5 {[%emt 0:03:00]} Ne4 {[%emt 0:18:51]} 24. Ng4 {[%emt 0:04:58]} Rf8 {[%emt 0:02:08]} 25. Bh6 {[%emt 0:02:45]} Qxc3 {[%emt 0:04:50]} 26. Bxg7 {[%emt 0:00:10]} Kxg7 {[%emt 0:00:07]} 27. Qc1 {[%emt 0:05:12]} Qxd4 {[%emt 0:08:41]} 28. Qh6+ {[%emt 0:00:34]} Kg8 {[%emt 0:00:24]} 29. Rad1 {[%emt 0:00:16]} Qg7 {[%emt 0:05:02]} 30. Rxe4 {[%emt 0:00:20]} Qxh6 {[%emt 0:00:16]} 31. Nxh6+ {[%emt 0:00:05]} Kg7 {[%emt 0:00:02]} 32. Rh4 {[%emt 0:02:12]} Kxh6 {[%emt 0:02:51]} 33. Be8+ {[%emt 0:00:21]} Kg5 {[%emt 0:00:45]} 34. Rh5+ {[%emt 0:00:07]} Kf6 {[%emt 0:01:55]} 35. Bxd7 {[%emt 0:00:05]} Ne5 {[%emt 0:00:02]} 36. Rxh7 {[%emt 0:00:45]} Nf7 {[%emt 0:02:32]} 37. Re1 {[%emt 0:04:23]} e5 {[%emt 0:00:07]} 38. Bg4 {[%emt 0:00:10]} d4 {[%emt 0:00:14]} 39. Bh5 {[%emt 0:00:10]} Nd8 {[%emt 0:00:37]} 40. Rc7 {[%emt 0:01:37]} 1-0

[Event "FIDE World Junior U20-ch Girls 2025"]
[Site "Petrovac"]
[Date "2025.03.01"]
[Round "5.5"]
[White "Lu, Miaoyi"]
[Black "Yakimova, Mariya"]
[Result "1/2-1/2"]
[Annotator "ChessBase"]
[ECO "B31"]
[WhiteElo "2432"]
[BlackElo "2201"]
[PlyCount "57"]
[EventDate "2025.02.23"]
[EventType "swiss"]
[EventCountry "MNE"]
[SourceTitle "playchess.com"]
[Source "ChessBase"]
[SourceQuality "1"]
[TimeControl "40/5400+30:1800+30"]

1. e4 {[%emt 0:00:01]} c5 {[%emt 0:00:20]} 2. Nf3 {[%emt 0:00:03]} Nc6 {[%emt 0:00:07]} 3. Bb5 {[%emt 0:00:17]} g6 {[%emt 0:00:07]} 4. O-O {[%emt 0:01:00]} Bg7 {[%emt 0:00:05]} 5. Re1 {[%emt 0:01:04]} e5 {[%emt 0:00:17]} 6. Bxc6 {[%emt 0:02:05]} dxc6 {[%emt 0:00:09]} 7. a4 {[%emt 0:00:46]} Qe7 {[%emt 0:00:43]} 8. Na3 {[%emt 0:00:24]} Nh6 {[%emt 0:02:01]} 9. Nc4 {[%emt 0:01:35]} f6 {[%emt 0:00:17]} 10. d3 {[%emt 0:00:14]} Be6 {[%emt 0:00:17]} 11. a5 {[%emt 0:12:41]} Nf7 {[%emt 0:00:23]} 12. Be3 {[%emt 0:00:44]} O-O {[%emt 0:00:36]} 13. Nfd2 {[%emt 0:00:36]} Bh6 {[%emt 0:04:01]} 14. Bxh6 {[%emt 0:00:20]} Nxh6 {[%emt 0:00:06]} 15. Qe2 {[%emt 0:00:05]} Kg7 {[%emt 0:13:50]} 16. Qe3 {[%emt 0:08:24]} Ng4 {[%emt 0:00:20]} 17. Qg3 {[%emt 0:00:15]} Qc7 {[%emt 0:01:58]} 18. Rf1 {[%emt 0:17:38]} b5 {[%emt 0:06:43]} 19. Ne3 {[%emt 0:12:09]} Nxe3 {[%emt 0:06:01]} 20. Qxe3 {[%emt 0:00:03]} Qd6 {[%emt 0:00:08]} 21. c4 {[%emt 0:13:47]} bxc4 {[%emt 0:08:22]} 22. Nxc4 {[%emt 0:08:30]} Bxc4 {[%emt 0:00:17]} 23. dxc4 {[%emt 0:00:02]} Rfd8 {[%emt 0:01:37]} 24. a6 {[%emt 0:04:16]} Rab8 {[%emt 0:07:41]} 25. b3 {[%emt 0:08:54]} Qd4 {[%emt 0:00:45]} 26. Qh3 {[%emt 0:00:02]} Qd7 {[%emt 0:08:27]} 27. Qe3 {[%emt 0:00:17]} Qd4 {[%emt 0:00:05]} 28. Qh3 {[%emt 0:00:17]} Qd7 {[%emt 0:02:25]} 29. Qe3 {[%emt 0:00:36]} 1/2-1/2

[Event "FIDE World Junior U20-ch Girls 2025"]
[Site "Petrovac"]
[Date "2025.03.01"]
[Round "5.6"]
[White "Balabayeva, Xeniya"]
[Black "Gaal, Zsoka"]
[Result "1/2-1/2"]
[Annotator "ChessBase"]
[ECO "E17"]
[WhiteElo "2264"]
[BlackElo "2404"]
[PlyCount "64"]
[EventDate "2025.02.23"]
[EventType "swiss"]
[EventCountry "MNE"]
[SourceTitle "playchess.com"]
[Source "ChessBase"]
[SourceQuality "1"]
[TimeControl "40/5400+30:1800+30"]

1. d4 {[%emt 0:00:03]} Nf6 {[%emt 0:00:08]} 2. Nf3 {[%emt 0:00:13]} b6 {[%emt 0:00:06]} 3. g3 {[%emt 0:03:46]} Bb7 {[%emt 0:01:32]} 4. Bg2 {[%emt 0:00:05]} e6 {[%emt 0:00:19]} 5. O-O {[%emt 0:01:54]} Be7 {[%emt 0:00:06]} 6. c4 {[%emt 0:11:34]} O-O {[%emt 0:00:09]} 7. b3 {[%emt 0:00:11]} a5 {[%emt 0:06:47]} 8. Nc3 {[%emt 0:09:44]} Ne4 {[%emt 0:01:03]} 9. Bb2 {[%emt 0:04:28]} d6 {[%emt 0:03:22]} 10. Qc2 {[%emt 0:08:19]} Nxc3 {[%emt 0:02:23]} 11. Bxc3 {[%emt 0:02:23]} f5 {[%emt 0:01:10]} 12. d5 {[%emt 0:13:34]} e5 {[%emt 0:03:15]} 13. Nxe5 {[%emt 0:03:15]} dxe5 {[%emt 0:01:56]} 14. d6 {[%emt 0:00:05]} Bxg2 {[%emt 0:04:42]} 15. dxe7 {[%emt 0:00:05]} Qxe7 {[%emt 0:00:08]} 16. Kxg2 {[%emt 0:00:06]} Nc6 {[%emt 0:10:52]} 17. Rad1 {[%emt 0:01:38]} Rae8 {[%emt 0:11:56]} 18. Rd5 {[%emt 0:05:24]} Nd4 {[%emt 0:08:07]} 19. Bxd4 {[%emt 0:04:09]} exd4 {[%emt 0:00:10]} 20. Rxf5 {[%emt 0:04:29]} Rxf5 {[%emt 0:00:55]} 21. Qxf5 {[%emt 0:00:02]} Qxe2 {[%emt 0:01:47]} 22. Qd5+ {[%emt 0:00:06]} Kf8 {[%emt 0:04:03]} 23. Qxd4 {[%emt 0:03:27]} Qxa2 {[%emt 0:00:22]} 24. Qd3 {[%emt 0:01:54]} h6 {[%emt 0:06:29]} 25. Rd1 {[%emt 0:08:40]} Qe2 {[%emt 0:04:23]} 26. Qf5+ {[%emt 0:02:47]} Kg8 {[%emt 0:00:06]} 27. Rd7 {[%emt 0:01:15]} Re7 {[%emt 0:00:44]} 28. Rd8+ {[%emt 0:02:45]} Re8 {[%emt 0:00:06]} 29. Rd7 {[%emt 0:03:15]} Re7 {[%emt 0:00:07]} 30. Qd5+ {[%emt 0:00:42]} Kh7 {[%emt 0:01:24]} 31. Qf5+ {[%emt 0:00:37]} Kg8 {[%emt 0:00:26]} 32. Rd4 {[%emt 0:04:01]} Re8 {[%emt 0:02:14]} 1/2-1/2

[Event "FIDE World Junior U20-ch Girls 2025"]
[Site "Petrovac"]
[Date "2025.03.01"]
[Round "5.7"]
[White "Song, Yuxin"]
[Black "Nurgaliyeva, Zarina"]
[Result "1/2-1/2"]
[Annotator "ChessBase"]
[ECO "A13"]
[WhiteElo "2381"]
[BlackElo "2265"]
[PlyCount "96"]
[EventDate "2025.02.23"]
[EventType "swiss"]
[EventCountry "MNE"]
[SourceTitle "playchess.com"]
[Source "ChessBase"]
[SourceQuality "1"]
[TimeControl "40/5400+30:1800+30"]

1. Nf3 {[%emt 0:00:03]} d5 {[%emt 0:00:17]} 2. c4 {[%emt 0:00:06]} e6 {[%emt 0:00:09]} 3. g3 {[%emt 0:00:05]} Nf6 {[%emt 0:00:56]} 4. Bg2 {[%emt 0:00:07]} dxc4 {[%emt 0:00:41]} 5. O-O {[%emt 0:00:06]} Be7 {[%emt 0:09:39]} 6. Qa4+ {[%emt 0:04:46]} Bd7 {[%emt 0:01:09]} 7. Qxc4 {[%emt 0:00:08]} c5 {[%emt 0:00:16]} 8. d4 {[%emt 0:04:07]} Qc8 {[%emt 0:05:04]} 9. dxc5 {[%emt 0:12:43]} Qxc5 {[%emt 0:04:52]} 10. Qxc5 {[%emt 0:00:48]} Bxc5 {[%emt 0:00:09]} 11. Ne5 {[%emt 0:00:08]} Nc6 {[%emt 0:00:26]} 12. Nxd7 {[%emt 0:05:57]} Kxd7 {[%emt 0:04:52]} 13. Nc3 {[%emt 0:01:53]} Rhd8 {[%emt 0:02:01]} 14. Na4 {[%emt 0:11:00]} Bd6 {[%emt 0:02:07]} 15. Be3 {[%emt 0:06:43]} Ke7 {[%emt 0:08:25]} 16. Bxc6 {[%emt 0:04:33]} bxc6 {[%emt 0:00:05]} 17. Rac1 {[%emt 0:00:08]} Rdc8 {[%emt 0:02:15]} 18. Bg5 {[%emt 0:04:44]} Rab8 {[%emt 0:12:18]} 19. Rfd1 {[%emt 0:03:15]} h6 {[%emt 0:07:27]} 20. Bxf6+ {[%emt 0:00:15]} gxf6 {[%emt 0:00:05]} 21. Rc4 {[%emt 0:00:43]} Rb5 {[%emt 0:06:07]} 22. Rdc1 {[%emt 0:01:59]} Kd7 {[%emt 0:03:21]} 23. b3 {[%emt 0:00:21]} Bb4 {[%emt 0:05:49]} 24. Rd1+ {[%emt 0:13:49]} Ke7 {[%emt 0:00:11]} 25. Rdd4 {[%emt 0:00:05]} a5 {[%emt 0:01:07]} 26. Nb2 {[%emt 0:00:52]} h5 {[%emt 0:03:39]} 27. Nd3 {[%emt 0:02:15]} Bd6 {[%emt 0:00:20]} 28. Kg2 {[%emt 0:00:20]} Bb8 {[%emt 0:04:00]} 29. Rc2 {[%emt 0:01:25]} Bd6 {[%emt 0:00:46]} 30. Kh3 {[%emt 0:03:45]} Rb6 {[%emt 0:03:14]} 31. Rh4 {[%emt 0:01:42]} Rb5 {[%emt 0:00:20]} 32. Kg2 {[%emt 0:02:07]} Kd7 {[%emt 0:00:50]} 33. Kh3 {[%emt 0:03:58]} Ke7 {[%emt 0:00:06]} 34. Rhc4 {[%emt 0:00:37]} Kd7 {[%emt 0:06:56]} 35. Nb2 {[%emt 0:00:06]} Bb4 {[%emt 0:01:50]} 36. Na4 {[%emt 0:00:21]} Kd6 {[%emt 0:00:41]} 37. Kh4 {[%emt 0:00:39]} Rc7 {[%emt 0:01:07]} 38. Nb2 {[%emt 0:00:43]} Rc8 {[%emt 0:00:52]} 39. Nd3 {[%emt 0:00:06]} Rc7 {[%emt 0:02:45]} 40. h3 {[%emt 0:03:07]} Rc8 {[%emt 0:00:28]} 41. a4 {[%emt 0:31:15]} Rbb8 {[%emt 0:30:37]} 42. Nxb4 {[%emt 0:00:35]} Rxb4 {[%emt 0:01:21]} 43. Rxb4 {[%emt 0:06:18]} axb4 {[%emt 0:00:02]} 44. Kxh5 {[%emt 0:00:29]} Rh8+ {[%emt 0:00:00]} 45. Kg4 {[%emt 0:00:00]} f5+ {[%emt 0:00:00]} 46. Kf4 {[%emt 0:00:00]} Rxh3 {[%emt 0:00:00]} 47. Rd2+ {[%emt 0:00:00]} Kc7 {[%emt 0:00:00]} 48. Ke5 {[%emt 0:00:00]} c5 {[%emt 0:00:00]} 1/2-1/2

[Event "FIDE World Junior U20-ch Girls 2025"]
[Site "Petrovac"]
[Date "2025.03.01"]
[Round "5.8"]
[White "Kurmangaliyeva, Liya"]
[Black "Zhapova, Yana"]
[Result "0-1"]
[Annotator "NA RC"]
[ECO "C50"]
[WhiteElo "2251"]
[BlackElo "2234"]
[PlyCount "116"]
[EventDate "2025.02.23"]
[EventType "swiss"]
[EventCountry "MNE"]
[SourceTitle "playchess.com"]
[Source "ChessBase"]
[SourceQuality "1"]
[TimeControl "40/5400+30:1800+30"]

1. e4 {[%emt 0:00:08]} e5 {[%emt 0:03:01]} 2. Nf3 {[%emt 0:00:25]} Nc6 {[%emt 0:00:15]} 3. Bc4 {[%emt 0:00:15]} Bc5 {[%emt 0:00:07]} 4. d3 {[%emt 0:00:30]} Nf6 {[%emt 0:00:38]} 5. Nc3 {[%emt 0:00:17]} a6 {[%emt 0:04:08]} 6. a4 {[%emt 0:00:47]} h6 {[%emt 0:01:09]} 7. Be3 {[%emt 0:02:53]} d6 {[%emt 0:00:27]} 8. Bxc5 {[%emt 0:01:56]} dxc5 {[%emt 0:00:07]} 9. h3 {[%emt 0:00:20]} Qd6 {[%emt 0:04:24]} 10. Nd2 {[%emt 0:05:26]} Be6 {[%emt 0:08:55]} 11. Ne2 {[%emt 0:01:33]} O-O-O {[%emt 0:01:57]} 12. Ng3 {[%emt 0:14:49]} Kb8 {[%emt 0:10:17]} 13. Qb1 {[%emt 0:12:20]} Nb4 {[%emt 0:08:58]} 14. O-O {[%emt 0:02:08]} h5 {[%emt 0:04:42]} 15. Nf5 {[%emt 0:07:28]} Bxf5 {[%emt 0:15:02]} 16. exf5 {[%emt 0:00:07]} Qd7 {[%emt 0:00:47]} 17. Nb3 {[%emt 0:09:33]} Qxf5 {[%emt 0:01:23]} 18. Nxc5 {[%emt 0:01:08]} Nfd5 {[%emt 0:09:09]} 19. Bxd5 {[%emt 0:23:14]} Rxd5 {[%emt 0:02:06]} 20. Ne4 {[%emt 0:00:07]} Qg6 {[%emt 0:03:50]} 21. a5 {[%emt 0:01:39]} Qc6 {[%emt 0:01:14]} 22. Nc3 {[%emt 0:03:21]} Rc5 {[%emt 0:02:05]} 23. Re1 {[%emt 0:01:29]} f5 {[%emt 0:00:22]} 24. Qd1 {[%emt 0:01:32]} Rd8 {[%emt 0:07:43]} 25. Qe2 {[%emt 0:00:51]} g5 {[%emt 0:00:59]} 26. Rec1 {[%emt 0:06:14]} g4 {[%emt 0:00:28]} 27. h4 {[%emt 0:00:09]} Qf6 {[%emt 0:03:06]} 28. Na4 {[%emt 0:00:51]} Rxa5 {[%emt 0:01:07]} 29. Qd2 {[%emt 0:00:55]} Qe7 {[%emt 0:00:40]} 30. Re1 {[%emt 0:01:00]} Rad5 {[%emt 0:01:12]} 31. Nc3 {[%emt 0:00:33]} R5d7 {[%emt 0:00:17]} 32. Ra4 {[%emt 0:00:52]} c5 {[%emt 0:00:45]} 33. Qe3 {[%emt 0:01:15]} Re8 {[%emt 0:00:58]} 34. Re2 {[%emt 0:00:22]} Nc6 {[%emt 0:00:29]} 35. Rd2 {[%emt 0:00:46]} Nd4 {[%emt 0:00:23]} 36. Qh6 {[%emt 0:00:38]} Qxh4 {[%emt 0:02:17]} 37. Qb6 {[%emt 0:00:25]} g3 {[%emt 0:00:35]} 38. fxg3 {[%emt 0:00:17]} Qxg3 {[%emt 0:00:13]} 39. Rf2 {[%emt 0:00:23]} Re6 {[%emt 0:02:32]} 40. Qxc5 {[%emt 0:00:33]} Rc6 {[%emt 0:00:57]} 41. Qf8+ {[%emt 0:04:38]} Rc8 {[%emt 0:03:13]} 42. Qf6 {[%emt 0:00:12]} Qe3 {[%emt 0:05:14]} 43. Ra1 {[%emt 0:03:31]} Nxc2 {[%emt 0:07:38]} 44. Qxf5 {[%emt 0:05:12]} Rg7 {[%emt 0:04:22]} 45. Rb1 {[%emt 0:05:34]} Rcg8 {[%emt 0:02:13]} 46. Kf1 {[%emt 0:05:19]} Qc5 {[%emt 0:02:02]} 47. Nd1 {[%emt 0:02:58]} h4 {[%emt 0:01:21]} 48. Qh5 {[%emt 0:05:35]} Nb4 {[%emt 0:01:41]} 49. Qf5 {[%emt 0:00:54]} Rg5 {[%emt 0:01:07]} 50. Qh7 {[%emt 0:00:22]} h3 {[%emt 0:02:46]} 51. Qxh3 {[%emt 0:00:33]} Rg3 {[%emt 0:00:04]} 52. Qd7 {[%emt 0:00:54]} Rxd3 {[%emt 0:00:30]} 53. Qe6 {[%emt 0:00:12]} Rdd8 {[%emt 0:01:29]} 54. Nc3 {[%emt 0:00:23]} Nd3 {[%emt 0:00:22]} 55. Rf5 {[%emt 0:00:40]} Rge8 {[%emt 0:00:29]} 56. Qg6 {[%emt 0:00:40]} Nf4 {[%emt 0:00:24]} 57. Qg3 {[%emt 0:00:19]} Qc4+ {[%emt 0:00:10]} 58. Kg1 {[%emt 0:01:05]} Rd2 {[%emt 0:00:56]} 0-1